[Event "ChessKid Cup Div-III 2023"]
[Site "Online"]
[Date "2023.05.23"]
[Round "53.3"]
[White "Navara, David"]
[Black "Raja Harshit"]
[Result "1-0"]
[ECO "D02"]
[WhiteElo "2678"]
[BlackElo "2515"]
[Annotator "TA"]
[PlyCount "65"]
[EventDate "2023.05.21"]
[EventType "k.o."]
[EventCountry "NET"]
[SourceTitle "playchess.com"]
[Source "ChessBase"]
[SourceQuality "1"]
[TimeControl "900+3"]

{[%evp 11,64,0,-1,-2,-5,-10,0,-5,0,0,0,0,0,0,0,0,46,31,45,0,0,0,0,0,0,0,0,0,0,0,8,-5,0,0,33,16,351,348,437,495,493,138,451,452,29978,29979,29979,29980,29980,29981,29981,1973,29990,29991,29995]} 1. d4 {[%emt 0:00:07]} Nf6 {[%emt 0:04:09]} 2. Nf3 {[%emt 0:00:04]} d5 {[%emt 0:00:08]} 3. Bf4 {[%emt 0:00:04]} e6 {[%emt 0:00:09]} 4. e3 {[%emt 0:00:05]} Bd6 {[%emt 0:00:04]} 5. Nbd2 {[%emt 0:00:04]} O-O {[%emt 0:00:12]} 6. Ne5 {[%emt 0:00:22]} c5 {[%emt 0:00:05]} 7. c3 {[%emt 0:00:08] D02: 1 d4 d5 2 Nf3 sidelines, including 2...Nf6 3 g3 and 2...Nf6 3 Bf4.} Qc7 {[%emt 0:00:07] is now debated instead of 7...Nc6.} 8. Bd3 {[%emt 0:00:17]} b6 {[%emt 0:00:45]} 9. h4 {[%emt 0:00:16][%cal Bh2h4,Bh4h5,Bh5h6][%mdl 32] The position is equal.} Ba6 {[%emt 0:00:18]} 10. Bxa6 {[%emt 0:00:37]} Nxa6 {[%emt 0:00:03]} 11. h5 {[%emt 0:00:03] [#]} cxd4 $146 {[%emt 0:00:05]} ({Predecessor:} 11... h6 12. g4 cxd4 13. exd4 Nc5 14. Qe2 Nce4 15. Nxe4 Nxe4 16. f3 Ng5 17. Bxg5 hxg5 {1-0 Gukesh,D (2684)-Keymer,V (2686) Biel blitz 55th 2022 (8)}) 12. exd4 {[%emt 0:00:16]} Nc5 {[%emt 0:00:05][%mdl 64] [#] Deflection} 13. Qe2 {[%emt 0:00:53]} Nfe4 {[%emt 0:01:46]} (13... Nfd7 $11 {feels stronger.}) 14. h6 {[%emt 0:00:58]} (14. Bh2 {simplifies} Na4 15. h6 g6 16. Nxe4 dxe4 17. O-O) 14... g6 {[%emt 0:00:11]} 15. f3 {[%emt 0:02:08]} (15. Bh2 $5 {[%cal Rf2f3]}) 15... Nxd2 {[%emt 0:00:50]} 16. dxc5 {[%emt 0:00:05]} bxc5 {[%emt 0:00:10][%cal Od2c4] White must now prevent ...Nc4!} (16... Bxe5 $2 17. Bxe5 Nxf3+ 18. gxf3 $18) 17. Kxd2 {[%emt 0:00:10] Hoping for Bh2.} f6 {[%emt 0:00:10]} 18. Rae1 {[%emt 0:00:04]} Rab8 {[%emt 0:01:05]} 19. Kc2 {[%emt 0:00:14][%cal Oe5g6] aiming for Nxg6!} fxe5 {[%emt 0:00:22]} 20. Bxe5 {[%emt 0:00:03]} Rb6 {[%emt 0:00:15]} 21. Rh4 {[%emt 0:00:46][%cal Bh1h4,Bh4a4,Ba4a2][%mdl 32]} Qb7 {[%emt 0:00:35]} (21... Rfb8 {looks sharper.} 22. b3 c4 23. Bd4 Bg3) 22. b3 {[%emt 0:00:36]} Be7 {[%emt 0:00:33]} 23. Ra4 {[%emt 0:00:13]} c4 $2 {[%emt 0:00:41][%mdl 8192]} 24. Bd4 $18 {[%emt 0:00:09][%mdl 64] Skewer} (24. bxc4 $2 Rb2+ 25. Kc1 Bg5+ 26. f4 Rxf4 27. Bxf4 Bxf4+ 28. Kd1 Rxe2 $19) 24... cxb3+ {[%emt 0:00:27]} 25. axb3 {[%emt 0:00:05]} Rxb3 {[%emt 0:00:07] ...Rb2+ would be deadly.} 26. Qxe6+ {[%emt 0:00:06]} (26. Rxa7 $2 Rb2+ 27. Kd3 Qb5+ 28. Ke3 Rxe2+ $19) 26... Rf7 {[%emt 0:00:04] [#] ...Rb2+ is the strong threat. Black cannot hold the game after this.} 27. Ra2 {[%emt 0:00:44] Against Rb2+} ({Weaker is} 27. Rxa7 Rb2+ 28. Kc1 (28. Kd3 $2 Qb5+ 29. Ke3 Bg5+ 30. f4 Bxf4+ 31. Kf3 Qd3+ $19) 28... Bg5+ 29. Be3 Rb1+ 30. Kd2 Bxe3+ 31. Qxe3 Qb2+ 32. Kd3 Qb5+ 33. Kd2 Rb2+ 34. Kc1 Rb1+ 35. Kd2 Rb2+ 36. Kc1 Rb1+ 37. Kd2 $11) 27... Ba3 {[%emt 0:00:36]} (27... Bg5 $18 28. Qe5 (28. Rxa7 $2 {gets mated.} Rb2+ {[%mdl 64] Skewer} 29. Kd3 Rd2#) 28... Bf6 29. Qe8+ Rf8 30. Qe6+ Rf7 31. Bxf6 Rb6) 28. Qe8+ {[%emt 0:03:38]} Rf8 {[%emt 0:00:08]} 29. Qe5 {[%emt 0:00:03]} Rb2+ {[%emt 0:00:06]} 30. Rxb2 {[%emt 0:00:03]} Qxb2+ {[%emt 0:00:04]} 31. Kd1 {[%emt 0:00:04]} (31. Kd3 $142 Qb5+ 32. Kd2 Qb2+ 33. Ke3 Qc1+ 34. Rxc1 Bxc1+ 35. Kf2 Bxh6 36. Qh8+ {[%mdl 64] Deflection} Kf7 37. Qxh7+ Ke6 38. Qxg6+ Kd7 39. Qh7+ {[%mdl 64] Skewer} Ke8 40. Qxh6) 31... Qb3+ {[%emt 0:01:18]} 32. Ke2 {[%emt 0:00:06][%csl Gd4,Gh6][%cal Re5g7]} Kf7 {[%emt 0:00:04]} 33. Kf2 {[%emt 0:00:20] Beautiful play by Navara!   Weighted Error Value: White=0.05 (flawless) /Black=0.74} (33. Bxa7 $2 {perishes.} Re8 $19) 1-0

[Event "ChessKid Cup Div-III 2023"]
[Site "Online"]
[Date "2023.05.24"]
[Round "54.1"]
[White "Vallejo Pons, Francisco"]
[Black "Donchenko, Alexander"]
[Result "0-1"]
[ECO "B90"]
[WhiteElo "2712"]
[BlackElo "2669"]
[Annotator "TA"]
[PlyCount "82"]
[EventDate "2023.05.21"]
[EventType "k.o."]
[EventCountry "NET"]
[SourceTitle "playchess.com"]
[Source "ChessBase"]
[SourceQuality "1"]
[TimeControl "900+3"]

{[%evp 10,82,34,-14,37,14,8,-7,0,0,-31,-21,-1,-46,-59,-69,-69,-78,-85,-85,-81,-81,-85,-82,-67,-68,-60,-71,-48,-84,-81,-223,-231,-216,-220,-252,-252,-251,-248,-327,-314,-322,-283,-293,-277,-29990,-29991,-29991,-29976,-29969,-805,-1362,-1348,-1318,-1190,-1190,-1331,-1284,-1067,-1022,-1016,-5591,-4089,-29973,-29974,-29980,-29973,-29973,-29961,-29981,-29977,-29976,-29977,-29975,-29951]} 1. e4 {[%emt 0:00:07]} c5 {[%emt 0:00:05]} 2. Nf3 {[%emt 0:00:02]} d6 {[%emt 0:00:02]} 3. d4 {[%emt 0:00:02]} cxd4 {[%emt 0:00:01]} 4. Nxd4 {[%emt 0:00:00]} Nf6 {[%emt 0:00:01]} 5. Nc3 {[%emt 0:00:00]} a6 {[%emt 0:00:01]} 6. Rg1 {[%emt 0:00:00]} (6. Bg5 $14 {might be stronger.}) 6... h5 {[%emt 0:00:20] B90: Sicilian Najdorf: Unusual White 6th moves, 6 Be3 Ng4 and 6 Be3 e5.} (6... b5 $11) 7. h3 {[%emt 0:00:04]} g6 {[%emt 0:00:59]} 8. g4 {[%emt 0:00:34]} hxg4 {[%emt 0:00:11] The position is equal.} 9. hxg4 {[%emt 0:00:00]} Bg7 {[%emt 0:00:12]} 10. Be3 {[%emt 0:00:34]} Nc6 {[%emt 0:00:42]} 11. Be2 {[%emt 0:01:08] [#]} (11. Nxc6 {seems wilder.} bxc6 12. e5 Nd5 13. Nxd5 cxd5 14. Qxd5 Be6 15. Qd2) 11... Bxg4 $1 {[%emt 0:03:48][%mdl 64] [#] Deflection} 12. Nxc6 $146 {[%emt 0:02:54]} (12. Bxg4 Nxg4) ({Predecessor:} 12. Bxg4 Nxg4 13. Qxg4 Nxd4 14. O-O-O Nc6 15. Nd5 Ne5 16. Qe2 Rc8 17. Kb1 Nc4 18. Bd4 Bxd4 19. Rxd4 {½-½ Gilles,R-Hansberg,L LSS BI-2007-P-00011}) 12... Bxe2 {[%emt 0:00:03]} 13. Nxd8 {[%emt 0:00:03]} Bxd1 {[%emt 0:00:02] A strong pair of Bishops.} 14. Nxf7 {[%emt 0:00:05]} Kxf7 {[%emt 0:00:22]} 15. Rxd1 {[%emt 0:00:02]} Rac8 {[%emt 0:00:16]} 16. a3 {[%emt 0:07:37]} Rh3 {[%emt 0:03:19]} 17. Rd3 {[%emt 0:00:40]} Nd7 {[%emt 0:00:28]} 18. Bd2 {[%emt 0:00:05]} Rh2 {[%emt 0:01:49]} 19. Rdg3 {[%emt 0:01:11]} Bd4 {[%emt 0:00:42] Black is more active.} 20. Be3 {[%emt 0:00:36]} (20. R1g2 $17 Rxg2 21. Rxg2) 20... Bxc3+ $19 {[%emt 0:00:27]} 21. bxc3 {[%emt 0:00:01]} Rxc3 {[%emt 0:00:30]} 22. Rxg6 {[%emt 0:00:03]} Rxc2 {[%emt 0:00:53]} 23. Rg7+ {[%emt 0:00:13]} Ke6 {[%emt 0:00:02]} 24. Bd4 {[%emt 0:00:07]} Ne5 {[%emt 0:00:41] Wards off R1g6+} 25. Bxe5 {[%emt 0:00:02]} Kxe5 {[%emt 0:00:01]} (25... dxe5 $2 {too greedy.} 26. R7g2 $19) 26. Rxe7+ {[%emt 0:00:01][%mdl 4096] Endgame KRR-KRR} Kd4 {[%emt 0:00:01] Strongly threatening ...Rc1+.} 27. Rf1 $2 {[%emt 0:00:08] [#]} (27. Reg7 $19) 27... Kd3 $1 {[%emt 0:00:07][%cal Rc2c1]} 28. Kd1 {[%emt 0:00:04]} Ra2 {[%emt 0:00:05][%cal Ra2a1]} ({Stronger than} 28... Rhxf2 29. Rxf2 Rxf2 30. Kc1 $17) 29. Rc7 {[%emt 0:00:01]} Rxa3 {[%emt 0:00:11]} (29... Raxf2 $142 30. Rg1 Ra2 31. Rg3+ Kxe4 32. Rg1 Ke3 33. Rc3+ Kf2 34. Rcg3 Ra1+ {[%mdl 64] Skewer} 35. Kc2 Rxg1 36. Rd3 Rg3 37. Rd4 Kg1+ 38. Kc1 Rc3+ 39. Kb1 Rf3 40. Rg4+ Kh1 41. Rc4 Rf1+ 42. Rc1 Kg1 43. a4 a5 44. Rxf1+ Kxf1 45. Kc1 Ke1 46. Kb1 Kd1 47. Ka1 Kc2 48. Ka2 Rh1 49. Ka3 Ra1#) 30. e5 {[%emt 0:00:04]} Ra1+ {[%emt 0:00:03][%mdl 64] Skewer} ({Worse is} 30... dxe5 31. Rd7+ Kc3 32. Rxb7 $17) 31. Rc1 {[%emt 0:00:01]} Rxc1+ {[%emt 0:00:01]} 32. Kxc1 {[%emt 0:00:00]} dxe5 {[%emt 0:00:00] Threatens to win with ...e4. KR-KR} 33. Rd1+ {[%emt 0:00:04]} Kc4 {[%emt 0:00:04]} 34. Rd7 {[%emt 0:00:04]} b5 {[%emt 0:00:01][%cal Bb7b5,Bb5b4][%mdl 32]} 35. Rf7 {[%emt 0:00:01]} a5 {[%emt 0:00:05][%cal Ba6a5,Ba5a4][%mdl 32] ...a4 is the strong threat.} 36. Rf5 {[%emt 0:00:03]} a4 {[%emt 0:00:02] Black mates.} 37. Kd2 {[%emt 0:00:05]} Kd4 {[%emt 0:00:02]} 38. Kc2 {[%emt 0:00:02]} b4 {[%emt 0:00:02]} 39. Kb2 {[%emt 0:00:04]} Rh4 {[%emt 0:00:03]} 40. Rf8 {[%emt 0:00:06]} Rf4 {[%emt 0:00:01]} 41. Rd8+ {[%emt 0:00:00]} Kc4 {[%emt 0:00:03] Black took control after the opening.   Weighted Error Value: White=0.90/Black=0.25 (precise)} 0-1

[Event "ChessKid Cup Div-III 2023"]
[Site "Online"]
[Date "2023.05.24"]
[Round "54.1"]
[White "Lysyj, Igor"]
[Black "Navara, David"]
[Result "1/2-1/2"]
[ECO "D12"]
[WhiteElo "2606"]
[BlackElo "2678"]
[Annotator "TA"]
[PlyCount "89"]
[EventDate "2023.05.21"]
[EventType "k.o."]
[EventCountry "NET"]
[SourceTitle "playchess.com"]
[Source "ChessBase"]
[SourceQuality "1"]
[TimeControl "900+3"]

{[%evp 18,89,14,8,16,22,20,8,11,13,16,0,7,0,7,-22,-14,-16,0,0,0,0,0,-17,-16,-8,0,0,0,-85,0,0,0,0,0,0,0,0,0,0,0,0,0,0,0,0,0,0,0,0,16,16,16,23,30,0,0,0,30,30,30,30,30,30,60,60,60,60,60,60,60,60,60,60]} 1. d4 {[%emt 0:00:05]} d5 {[%emt 0:00:06]} 2. c4 {[%emt 0:00:02]} c6 {[%emt 0:00:01]} 3. Nf3 {[%emt 0:00:02]} Nf6 {[%emt 0:00:01]} 4. e3 {[%emt 0:00:03]} Bf5 {[%emt 0:00:01]} 5. cxd5 {[%emt 0:00:02]} cxd5 {[%emt 0:00:01]} 6. Qb3 {[%emt 0:00:01]} Qc7 {[%emt 0:00:03]} 7. Bd2 {[%emt 0:00:07]} e6 {[%emt 0:00:23]} 8. Bb5+ {[%emt 0:00:04]} Nc6 {[%emt 0:00:01]} 9. O-O $1 {[%emt 0:00:03] The main line 9.0-0 scores better than 9.Bb4.} Bd6 {[%emt 0:00:02]} 10. Bb4 {[%emt 0:00:03]} O-O {[%emt 0:00:05] D12: Slav Defence: 3 Nf3 Nf6 4 e3 Bf5.} 11. Bxd6 {[%emt 0:00:02]} Qxd6 {[%emt 0:00:00]} 12. Nbd2 {[%emt 0:00:06]} Rfc8 {[%emt 0:00:08] The position is equal.} 13. Rfc1 {[%emt 0:00:04]} Nd7 {[%emt 0:00:46][%cal Bf6d7,Bd7b6,Bb6c4][%mdl 32]} 14. Bxc6 {[%emt 0:03:27]} bxc6 {[%emt 0:00:00]} 15. Qc3 {[%emt 0:00:32]} c5 {[%emt 0:01:42] [#]} 16. Nb3 $146 {[%emt 0:00:03]} (16. Qa3 $5 {[%cal Rd2b3]}) ({Predecessor:} 16. Qa3 Qb6 17. dxc5 Rxc5 18. Rxc5 Nxc5 19. Nd4 Bg6 20. b3 Nd3 21. Qe7 Rc8 22. N2f3 h6 23. h3 Qb8 24. Qd7 Rc7 25. Nc6 Rxd7 26. Nxb8 Rc7 27. Ne1 a5 {0-1 Akesson,J (2311)-Hector,J (2513) SWE-chT 1617 2016 (4.1)}) 16... c4 {[%emt 0:00:03]} 17. Nbd2 {[%emt 0:00:01]} a5 {[%emt 0:00:31]} 18. b3 {[%emt 0:00:14][%cal Rb3c4]} Nb6 {[%emt 0:00:14]} 19. bxc4 {[%emt 0:00:10]} Nxc4 {[%emt 0:00:00]} 20. Nb3 {[%emt 0:00:29][%cal Ob3a5]} h6 {[%emt 0:00:27]} 21. Nc5 {[%emt 0:00:14]} Rab8 {[%emt 0:00:35][%cal Oe6e5]} 22. Nd2 {[%emt 0:00:04]} e5 {[%emt 0:01:25]} 23. a3 {[%emt 0:01:15] [#]} (23. Nxc4 $11 {remains equal.} dxc4 24. Qxc4) 23... exd4 {[%emt 0:00:59]} ({Black should try} 23... Qg6 $1 $17 {aiming for ...Bh3.} 24. Nxc4 Bh3) 24. exd4 $11 {[%emt 0:00:05]} Qf4 {[%emt 0:00:32]} 25. Nxc4 {[%emt 0:00:22]} dxc4 {[%emt 0:00:00]} 26. Re1 {[%emt 0:00:56]} Be6 {[%emt 0:01:11]} 27. g3 {[%emt 0:01:06]} Qd6 {[%emt 0:01:08]} 28. Nxe6 {[%emt 0:01:13]} (28. Qxa5 {looks sharper.} Qd5 29. Qc3 Rb3 30. Qc2) 28... fxe6 {[%emt 0:00:00]} 29. Qxa5 {[%emt 0:00:01]} Qxd4 {[%emt 0:00:37]} 30. Rad1 {[%emt 0:00:12]} Qf6 {[%emt 0:00:05]} 31. Qa6 {[%emt 0:00:46]} c3 {[%emt 0:00:25][%cal Bc4c3,Bc3c2][%mdl 32]} 32. Qxe6+ {[%emt 0:00:10]} Qxe6 {[%emt 0:00:02]} 33. Rxe6 {[%emt 0:00:01][%mdl 4096] Endgame KRR-KRR} c2 {[%emt 0:00:00]} 34. Rc1 {[%emt 0:00:01]} Rb1 {[%emt 0:00:12]} 35. Ree1 {[%emt 0:00:03]} Rb3 {[%emt 0:00:53]} 36. Re2 {[%emt 0:00:14]} Rb1 {[%emt 0:00:05]} ({But not} 36... Rxa3 37. Rexc2 (37. Rcxc2 Rxc2 38. Rxc2 g5 $16) 37... Rxc2 38. Rxc2 $16) 37. Ree1 {[%emt 0:00:01]} Rb2 {[%emt 0:00:13]} 38. Kg2 {[%emt 0:00:15]} Rc4 {[%emt 0:00:04]} 39. Re2 {[%emt 0:00:11]} Ra2 {[%emt 0:00:08] [#]} 40. a4 $1 {[%emt 0:00:06]} h5 {[%emt 0:00:09][%cal Oh5h4]} ({Resist} 40... Raxa4 41. Rexc2 (41. Rcxc2 Rxc2 42. Rxc2 g5 $16) 41... Rxc2 42. Rxc2 $16) (40... Kf7 41. a5) 41. h4 {[%emt 0:00:06] White is slightly better.} Kh7 {[%emt 0:00:04][%cal Oh7h6] [#]} 42. a5 $1 {[%emt 0:00:09]} g6 {[%emt 0:00:06] [#]} 43. a6 $1 {[%emt 0:00:04][%mdl 64] Deflection} Rxa6 {[%emt 0:00:02]} 44. Rexc2 {[%emt 0:00:03]} Rxc2 {[%emt 0:00:00]} 45. Rxc2 {[%emt 0:00:04] Weighted Error Value: White=0.07 (flawless) /Black=0.07 (flawless)} 1/2-1/2

[Event "ChessKid Cup Div-III 2023"]
[Site "Online"]
[Date "2023.05.24"]
[Round "54.1"]
[White "Antipov, Mikhail Al."]
[Black "Kamsky, Gata"]
[Result "0-1"]
[ECO "B40"]
[WhiteElo "2588"]
[BlackElo "2665"]
[Annotator "TA"]
[PlyCount "108"]
[EventDate "2023.05.21"]
[EventType "k.o."]
[EventCountry "NET"]
[SourceTitle "playchess.com"]
[Source "ChessBase"]
[SourceQuality "1"]
[TimeControl "900+3"]

{[%evp 9,107,12,16,11,13,7,19,23,22,0,0,-13,-14,-6,-4,-20,-8,-13,-8,-8,-14,-10,0,-13,0,-21,11,13,16,-13,-15,-20,0,-23,-12,-42,-72,-124,-14,-14,-14,-14,-14,-14,-13,-22,-10,-10,-8,-8,-8,-8,-6,-6,0,-8,-5,-19,-24,-561,-533,-495,-78,-550,-567,-492,-577,-548,-517,-524,-438,-498,-465,-451,-351,-707,-89,-93,-93,-652,-622,-567,0,-329,-323,-252,-224,-667,-511,-1283,-1233,-1237,-1141,-1735,-1567,-1404,-1293,-29998,-29999,-29999]} 1. e4 {[%emt 0:00:04][%cal Be2e4,Be4e5][%mdl 32]} c5 {[%emt 0:00:06]} 2. Nf3 {[%emt 0:00:01]} e6 {[%emt 0:00:01]} 3. b3 {[%emt 0:00:03]} Nc6 {[%emt 0:00:15]} 4. Bb2 {[%emt 0:00:01]} a6 {[%emt 0:00:01]} 5. c4 {[%emt 0:00:01]} Nf6 {[%emt 0:00:04]} 6. e5 {[%emt 0:00:05] B40: Sicilian: 2...e6, Unusual lines.} Ng4 {[%emt 0:00:01]} 7. g3 {[%emt 0:00:00]} (7. h3 $5 Nh6 $8 8. Bd3 $11) 7... d6 {[%emt 0:00:07]} 8. exd6 {[%emt 0:00:04] [#] The position is equal.} Nf6 $146 {[%emt 0:00:02]} ({Predecessor:} 8... Qxd6 9. Qe2 f6 10. Nc3 e5 11. Bg2 Be6 12. O-O Be7 13. Nh4 Nd4 14. Qd1 f5 15. Nd5 Bxh4 16. gxh4 O-O 17. f4 e4 18. d3 Bxd5 19. cxd5 Ne3 {0-1 Plenca,J (2483)-Potkin,V (2583) Molodezhka-CRO online blitz 2020}) 9. Bg2 {[%emt 0:00:40]} Bxd6 {[%emt 0:00:02]} 10. O-O {[%emt 0:00:13]} e5 {[%emt 0:00:02]} 11. Re1 {[%emt 0:00:01][%cal Rf3e5]} O-O $1 {[%emt 0:00:01]} 12. Nc3 {[%emt 0:00:28]} (12. Bxe5 $2 {too greedy.} Nxe5 13. Nc3 (13. Nxe5 $2 {perishes.} Bxe5 14. Nc3 Bd4 $19) 13... Re8 $19) 12... Re8 {[%emt 0:00:07]} 13. d3 {[%emt 0:00:21]} h6 {[%emt 0:00:06]} 14. Nd2 {[%emt 0:00:23]} Bg4 {[%emt 0:00:02]} 15. Bf3 {[%emt 0:00:28]} Bxf3 {[%emt 0:00:02]} 16. Qxf3 {[%emt 0:00:53]} Nd4 {[%emt 0:00:02]} 17. Qd1 {[%emt 0:00:01]} Bc7 {[%emt 0:00:39]} 18. Nde4 {[%emt 0:00:08]} Nxe4 {[%emt 0:00:09]} 19. Nxe4 {[%emt 0:00:35]} Ba5 {[%emt 0:00:06]} 20. Rf1 {[%emt 0:03:32]} Rc8 {[%emt 0:00:07]} 21. Qh5 {[%emt 0:01:21]} f5 {[%emt 0:01:19]} 22. Bxd4 {[%emt 0:00:23]} (22. Nc3 {simplifies} Bxc3 23. Bxc3 Qf6 24. Rae1) 22... fxe4 {[%emt 0:00:03]} 23. Bxe5 {[%emt 0:00:01]} ({Better is} 23. Bb2 exd3 24. Bxe5) 23... exd3 {[%emt 0:00:07]} (23... Qg5 $1 $17 {[%cal Rg5h5]} 24. Qxg5 hxg5) 24. Rad1 $11 {[%emt 0:00:35]} d2 {[%emt 0:00:13]} 25. f4 $1 {[%emt 0:00:37]} Qd7 {[%emt 0:00:30]} 26. Rf2 {[%emt 0:01:06][%cal Bf1f2,Bf2e2,Be2e3,Be3d3][%mdl 32]} Rcd8 {[%emt 0:00:17]} 27. Qg6 {[%emt 0:00:06]} (27. Rf3 {keeps more tension.} b5 28. Qg6 bxc4 29. bxc4 Re7 30. Qxa6 Bb4 31. Qg6) 27... Qf7 {[%emt 0:00:25]} 28. Qxf7+ {[%emt 0:00:50]} Kxf7 {[%emt 0:00:03]} 29. Re2 {[%emt 0:00:27]} b5 {[%emt 0:01:17] aiming for ...bxc4.} 30. Kf2 {[%emt 0:01:03]} g5 {[%emt 0:00:27]} 31. Re3 {[%emt 0:00:18] Inhibits Rd3.} Kg6 {[%emt 0:00:15][%cal Bf7g6,Bg6f5,Bf5e4][%mdl 32]} 32. Ke2 {[%emt 0:00:16]} g4 $36 {[%emt 0:00:47][%mdl 2048] White is under pressure.} 33. Rd3 {[%emt 0:00:34]} Kf5 {[%emt 0:00:27] Threatens to win with ...bxc4.} 34. a3 $2 {[%emt 0:00:33][%mdl 8192]} (34. Re3 $1 $11) 34... bxc4 {[%emt 0:00:06]} 35. bxc4 {[%emt 0:00:01]} h5 $2 {[%emt 0:00:11]} (35... Rxd3 $19 {has better winning chances.} 36. Kxd3 Rd8+ 37. Kc2 Ke4) 36. Ke3 $2 {[%emt 0:00:22][%mdl 8192]} (36. Re3 $17) 36... Rxd3+ $19 {[%emt 0:00:54]} 37. Kxd3 {[%emt 0:00:00][%mdl 4096] Endgame KRB-KRB} Rd8+ {[%emt 0:00:01]} 38. Kc2 {[%emt 0:00:01] [#]} Ke4 $1 {[%emt 0:00:05]} 39. Bb2 {[%emt 0:00:12]} Rd3 {[%emt 0:00:09]} 40. f5 {[%emt 0:00:05]} Rf3 {[%emt 0:00:03]} 41. f6 {[%emt 0:00:01]} Rf2 {[%emt 0:00:38]} 42. Ba1 $2 {[%emt 0:00:00]} (42. Bc3 Bxc3 43. Kxc3) 42... Ke3 $2 {[%emt 0:01:17]} (42... Rxh2 $19 43. Bc3 Bxc3 44. Kxc3 Rf2 45. Rxd2 Rxf6) 43. Be5 $17 {[%emt 0:00:02] Hoping for Bf4+.} Rf5 {[%emt 0:00:27] Black is more active.} 44. Bb2 {[%emt 0:00:10][%mdl 8192]} (44. Bf4+ $17 Ke4 45. Bxd2) 44... Ke2 $19 {[%emt 0:00:11]} 45. Ba1 {[%emt 0:00:03]} Ke3 {[%emt 0:00:36] And now ...Kf2 would win.} 46. Bb2 $1 {[%emt 0:00:02]} Ke4 {[%emt 0:00:06]} 47. Ba1 {[%emt 0:00:03] [#]} Rf2 $1 {[%emt 0:00:05]} 48. Bb2 $2 {[%emt 0:00:01]} (48. Bc3 Bxc3 49. Kxc3) 48... Rxh2 {[%emt 0:00:54] ...Rf2 would be deadly.} 49. Rf1 {[%emt 0:00:05] [#]} (49. Bc3 $142 Bxc3 50. Kxc3) 49... d1=Q+ $1 {[%emt 0:00:12][%mdl 576] Deflection} 50. Kxd1 {[%emt 0:00:01]} Rxb2 {[%emt 0:00:02]} 51. f7 {[%emt 0:00:01]} Kd3 {[%emt 0:00:03][%cal Rb2b1]} 52. Kc1 {[%emt 0:00:01] Inhibits Rb1+.} Rb8 {[%emt 0:00:03] ( -> ...Bd2+)} 53. f8=Q {[%emt 0:00:04]} Bd2+ {[%emt 0:00:01]} 54. Kd1 {[%emt 0:00:04]} Rb1# {[%emt 0:00:01] Excellently played by Kamsky!   Weighted Error Value: White=0.87/Black=0.34} 0-1

[Event "ChessKid Cup Div-III 2023"]
[Site "Online"]
[Date "2023.05.24"]
[Round "54.2"]
[White "Yu, Yangyi"]
[Black "Sevian, Samuel"]
[Result "1/2-1/2"]
[ECO "E35"]
[WhiteElo "2729"]
[BlackElo "2684"]
[Annotator "TA"]
[PlyCount "77"]
[EventDate "2023.05.21"]
[EventType "k.o."]
[EventCountry "NET"]
[SourceTitle "playchess.com"]
[Source "ChessBase"]
[SourceQuality "1"]
[TimeControl "900+3"]

{[%evp 13,77,18,14,20,27,18,28,0,20,0,16,-5,-7,-11,0,0,-6,0,0,0,0,0,7,14,15,14,12,6,18,8,11,13,27,0,0,0,0,0,0,-6,0,0,0,0,0,-13,-7,-16,-16,-18,-10,-10,0,0,0,-18,-10,-42,-46,-72,-68,-46,-33,-127,-27,-75]} 1. d4 {[%emt 0:00:33]} Nf6 {[%emt 0:00:06]} 2. c4 {[%emt 0:00:02]} e6 {[%emt 0:00:01]} 3. Nc3 {[%emt 0:00:02]} Bb4 {[%emt 0:00:01]} 4. Qc2 {[%emt 0:00:01]} d5 {[%emt 0:00:04]} 5. cxd5 {[%emt 0:00:02]} exd5 {[%emt 0:00:00]} 6. Bg5 {[%emt 0:00:02]} h6 {[%emt 0:00:01]} 7. Bh4 $1 {[%emt 0:00:01] 7.Bh4 is better than 7.Bxf6.} O-O {[%emt 0:00:13]} 8. e3 {[%emt 0:00:03] E35: Nimzo-Indian: Classical: 4...d5 5 cxd5 exd5.} Bg4 {[%emt 0:00:00]} 9. h3 {[%emt 0:00:22]} Bh5 {[%emt 0:00:01]} 10. Bd3 {[%emt 0:00:01] White has an edge.} (10. Be2 $5 {[%cal Rh4f6]} g5 11. Bg3 $11) 10... c5 {[%emt 0:00:01] [#]} 11. a3 $146 {[%emt 0:01:28]} (11. Kf1 $5 {[%cal Rh4f6]}) ({Predecessor:} 11. dxc5 d4 12. a3 Nc6 13. Bh7+ Kh8 14. axb4 Nxb4 15. Qf5 dxc3 16. bxc3 Nbd5 17. c4 {1-0 Warner,D (2229)-Blackman,J (1998) BAR-ch Bridgetown 2005 (4)}) 11... Ba5 {[%emt 0:00:05]} 12. Nge2 {[%emt 0:00:43]} (12. Kf1 $5 {[%cal Rh4f6]} cxd4 13. Bxf6 Qxf6 14. Nxd5 $11) 12... Bxe2 $1 {[%emt 0:00:03]} 13. Bxe2 {[%emt 0:00:01]} ({Reject} 13. Kxe2 g5 14. Bg3 cxd4 $17) 13... cxd4 {[%emt 0:00:03]} 14. exd4 {[%emt 0:00:01]} Nc6 {[%emt 0:00:05][%cal Og7g5]} 15. Rd1 {[%emt 0:00:01]} g5 {[%emt 0:02:04]} 16. Bg3 {[%emt 0:00:02]} Qb6 {[%emt 0:00:01][%cal Of6e4]} 17. Be5 {[%emt 0:01:17]} Nd7 $132 {[%emt 0:02:51][%mdl 2048] Black is fighting back} 18. O-O {[%emt 0:01:16]} Bxc3 {[%emt 0:00:04]} 19. bxc3 {[%emt 0:00:28] [#] Hoping for Rb1.} ({Of course not} 19. Qxc3 Rae8 $15) 19... Ndxe5 {[%emt 0:00:02]} 20. dxe5 {[%emt 0:00:00] Black must now prevent e6.} Nxe5 {[%emt 0:00:01]} 21. Rxd5 {[%emt 0:00:02]} Rfe8 {[%emt 0:00:01]} 22. Rfd1 {[%emt 0:00:20] And now Rd6 would win.} Rad8 {[%emt 0:00:09] Wards off Rd6} 23. Bf1 {[%emt 0:00:49]} (23. c4 {with more complications.} Kg7 24. g3 Rxd5 25. cxd5 Rd8 26. Kg2) 23... Rxd5 {[%emt 0:00:09]} 24. Rxd5 {[%emt 0:00:01]} Ng6 {[%emt 0:00:01]} 25. g3 {[%emt 0:00:21]} Re1 {[%emt 0:00:17]} 26. Rd1 {[%emt 0:00:32]} Rxd1 {[%emt 0:00:04]} (26... Ne5 {looks sharper.} 27. Qa4 Qc5 28. Qe8+ Qf8) 27. Qxd1 $11 {[%emt 0:00:01][%mdl 4096] Endgame KQB-KQN} Qc5 {[%emt 0:00:00][%csl LRa3,LRc3]} 28. Qb3 {[%emt 0:00:59]} b6 {[%emt 0:00:03]} 29. a4 {[%emt 0:00:58]} Ne5 {[%emt 0:00:04]} 30. Be2 {[%emt 0:00:05] Repels Nf3+} (30. Qb4 {keeps more tension.} Nf3+ 31. Kg2 Qd5 32. Qc4) 30... Kg7 {[%emt 0:00:05]} 31. Qb2 {[%emt 0:00:09]} Qd6 {[%emt 0:00:17]} 32. Qb5 {[%emt 0:00:10]} Nd7 {[%emt 0:00:09]} 33. a5 {[%emt 0:00:40]} Nc5 {[%emt 0:00:05]} 34. a6 {[%emt 0:00:39]} Qd5 {[%emt 0:00:06]} 35. Bc4 {[%emt 0:00:45]} Qe5 {[%emt 0:00:35]} 36. Qb4 {[%emt 0:00:51]} Ne4 {[%emt 0:00:03]} 37. Bd3 {[%emt 0:01:01]} Nxc3 {[%emt 0:00:10]} (37... Qxc3 $2 38. Qxe4 Kf6 39. Bf1 $18) 38. Qc4 {[%emt 0:00:19] [#]} (38. Qg4 $15) 38... Qc5 {[%emt 0:00:02]} ({Black should play} 38... Nd1 $1 $17 {...Qe1+ would be deadly.} 39. Qb4 Qc5 40. Qxc5 bxc5) 39. Qg4 $1 {[%emt 0:00:32] Weighted Error Value: White=0.14 (very precise) /Black=0.07 (flawless)} 1/2-1/2